bitfinex/quotes_ETHUSD_20260113
["timestamp","ask_amount","ask_price","bid_price","bid_amount"]
[1768338317175,0.002,3208.5,3208.1,3.11709115]
[1768338317339,0.002,3208.5,3208.0,0.80437558]
[1768338317526,0.002,3208.2,3207.9,3.11728164]
[1768338317732,0.002,3208.2,3207.9,3.11728319]
[1768338318032,0.002,3208.2,3208.0,3.11719571]
[1768338319461,0.002,3208.2,3207.9,3.11725982]
[1768338319772,0.002,3208.5,3207.9,4.91669602]
[1768338319988,0.002,3208.5,3208.0,0.4916696]
[1768338320486,0.002,3208.5,3208.0,2.2911058]
[1768338320662,0.002,3208.5,3208.0,0.4916696]
[1768338320836,0.002,3208.5,3207.4,3.11775663]
[1768338320837,4.66398763,3208.1,3207.7,3.1174978]
[1768338321036,1.69006786,3208.2,3207.6,3.11754087]
[1768338321359,1.69006786,3208.2,3207.8,3.11738017]
[1768338321562,1.69006786,3208.4,3207.5,6.2353858]
[1768338321861,1.69006786,3208.4,3207.6,0.8034822]
[1768338322278,1.69006786,3208.4,3207.6,2.6029184]
[1768338322441,0.002,3208.5,3207.7,1.7994362]
[1768338322766,0.247,3208.5,3207.9,1.7994362]
[1768338322970,0.002,3208.5,3208.0,1.83060826]
[1768338323133,0.002,3208.5,3208.1,1.98249703]
[1768338323770,0.002,3208.5,3208.3,1.7994362]
[1768338324676,0.00080152,3208.9,3208.2,6.2340253]
[1768338325765,0.00080152,3208.9,3208.3,4.91627182]
[1768338327434,0.00080152,3208.9,3208.4,1.7994362]
[1768338327633,0.00080152,3208.9,3208.5,0.17994362]
[1768338328040,0.00080152,3208.9,3208.2,4.91644885]
[1768338328568,0.00080152,3208.9,3208.2,8.0334615]
[1768338330178,0.245,3209.1,3208.5,1.8002378]
[1768338330375,1e-08,3209.2,3208.6,1.7994362]
[1768338330754,0.002,3208.9,3208.6,1.7994362]
[1768338330953,0.002,3208.9,3208.7,1.97945998]
[1768338332139,0.002,3208.9,3208.8,1.7994362]
[1768338332348,0.002,3208.9,3208.7,0.18002378]
[1768338335881,0.002,3208.9,3208.7,5.01938633]
[1768338336984,0.002,3208.9,3208.7,1.90287257]
[1768338337178,0.002,3208.9,3208.8,0.50194198]
[1768338337966,0.002,3208.9,3208.8,3.61837179]
[1768338338457,0.002,3208.9,3208.8,0.50194198]
[1768338338856,0.002,3208.9,3208.8,3.61837179]
[1768338339156,0.002,3208.9,3208.8,0.50194198]
[1768338339683,0.002,3208.9,3208.8,5.34122058]
[1768338339846,1e-08,3209.2,3208.8,0.50194198]
[1768338340052,1e-08,3209.2,3208.8,3.61829377]
[1768338340251,1e-08,3209.2,3208.9,0.37983176]
[1768338342357,1e-08,3209.2,3208.9,3.49615922]
[1768338342863,1e-08,3209.2,3208.9,0.37983176]
[1768338343054,1e-08,3209.2,3208.9,3.49613956]
[1768338343253,0.00200001,3209.2,3208.9,3.49613956]
[1768338343454,0.00200001,3209.2,3209.0,0.57209303]
[1768338344503,0.00200001,3209.2,3209.0,3.1162326]
[1768338345803,0.00200001,3209.2,3208.9,2.10268055]
[1768338347012,1.77570377,3209.0,3208.8,0.50194198]
[1768338347307,1.77570377,3209.0,3208.6,3.85]
[1768338347478,1.77770378,3209.2,3208.6,3.85]
[1768338347678,0.00200001,3209.2,3208.6,3.85]
[1768338348086,1.77770378,3209.2,3208.6,3.85]
[1768338348411,0.00200001,3209.2,3208.6,3.85]
[1768338348583,0.00200001,3209.2,3208.6,4.40736504]
[1768338348777,1.77770378,3209.2,3208.6,4.40736504]
[1768338349495,1.77770378,3209.2,3208.6,0.55736504]
[1768338349814,1.77770378,3209.2,3208.5,1.72365039]
[1768338351489,1.77570377,3209.1,3208.5,0.0008016]
[1768338352585,0.00200001,3209.2,3208.5,0.0008016]
[1768338352784,1.77570377,3209.1,3208.5,0.0008016]
[1768338352991,0.0008016,3208.9,3207.9,0.001]
[1768338353191,1.77570377,3208.8,3208.0,0.31183566]
[1768338353384,1.77570377,3208.8,3208.0,2.03468445]
[1768338353610,1.77570377,3208.8,3208.0,0.31183566]
[1768338354494,0.2458016,3208.9,3208.0,2.03468445]
[1768338354700,2.02150537,3208.9,3208.0,2.03468445]
[1768338354900,2.02150537,3208.9,3208.1,0.20356845]
[1768338355696,0.002,3208.8,3208.2,3.11701265]
[1768338355897,1.77650537,3208.9,3208.1,0.20356845]
[1768338356208,1.77650537,3208.9,3208.1,1.92641724]
[1768338356413,1.77650537,3208.9,3208.2,0.19575893]
[1768338356989,0.002,3209.1,3208.7,1.72284879]
[1768338358127,1.77770377,3209.1,3208.5,0.00080168]
[1768338358320,0.002,3209.1,3208.5,1.72365047]
[1768338358619,0.002,3209.1,3208.6,1.72284879]
[1768338358824,0.002,3209.1,3208.7,0.17236505]
[1768338359022,0.002,3209.1,3208.5,0.00080168]
[1768338359227,0.002,3209.1,3208.5,1.72365047]
[1768338359608,1.77770377,3209.1,3208.5,0.00080168]
[1768338368539,0.002,3208.8,3208.5,0.00080168]
[1768338369616,1.72099704,3208.8,3208.5,0.00080168]
[1768338370321,0.002,3208.8,3208.5,0.00080168]
[1768338373200,1.72099704,3208.8,3208.5,0.00080168]
[1768338373416,0.002,3208.8,3208.5,0.00080168]
[1768338373703,0.002,3208.8,3208.5,2.01293992]
[1768338373904,0.002,3209.1,3208.6,1.80080987]
[1768338374104,0.002,3209.1,3208.5,0.18096284]
[1768338374332,0.002,3209.1,3208.5,14.68096284]
[1768338374906,0.002,3209.1,3208.5,16.48177271]
[1768338375205,0.002,3209.1,3208.6,1.64817727]
[1768338375910,0.002,3209.1,3208.7,1.83197513]
[1768338376714,0.002,3209.1,3208.7,0.03116526]
[1768338376916,0.002,3209.1,3208.8,1.68152602]
[1768338377117,1.80394843,3209.1,3208.7,1.63291401]
[1768338377425,0.002,3209.1,3208.7,1.63291401]
[1768338378218,1.80394843,3209.1,3208.5,0.18096284]
[1768338378427,1.80394843,3209.1,3208.5,0.00080168]
[1768338378628,1.80394843,3209.1,3208.6,14.5]
[1768338379034,1.80394843,3209.1,3208.5,0.00080168]
[1768338380941,0.002,3208.8,3208.5,0.00080168]
[1768338387562,0.002,3208.8,3208.5,1.6823277]
[1768338387748,0.002,3208.8,3208.5,0.00080168]
[1768338387948,0.002,3208.8,3208.5,1.6823277]
[1768338388260,0.002,3208.8,3208.5,0.16903445]
[1768338388461,0.002,3208.8,3208.5,0.00080168]
[1768338389949,0.002,3208.8,3207.9,0.246]
[1768338390165,1.80194843,3208.7,3207.9,0.246]
[1768338390345,0.002,3208.8,3208.0,1.68152602]
[1768338391172,1.80394843,3208.8,3207.9,1.68252602]
[1768338391372,2.76178608,3208.8,3207.9,1.68252602]
[1768338391858,6.45927016,3208.6,3207.9,0.001]
[1768338392045,1.80194843,3208.6,3207.9,0.001]
[1768338392675,0.245,3208.6,3207.9,0.001]
[1768338392875,1.80194843,3208.5,3207.9,0.001]
[1768338393048,2.47237545,3208.5,3207.9,0.001]
[1768338393248,5.58910446,3208.5,3207.9,0.001]
[1768338393551,4.66112573,3208.4,3207.9,0.001]
[1768338393876,5.58910446,3208.5,3206.5,1.68152602]
[1768338393877,6.46307416,3208.1,3206.5,1.68152602]
[1768338394059,4.66112573,3207.8,3207.0,1.68152602]
[1768338394376,4.90612573,3207.8,3207.0,1.68152602]
[1768338394773,1.80194843,3207.7,3206.9,0.245]
[1768338395079,1.80194843,3207.7,3206.6,0.1681526]
[1768338395251,1.69869415,3207.4,3206.5,0.245]
[1768338395451,1.69869415,3207.4,3205.7,14.5]
[1768338395452,0.245,3207.3,3206.4,1.68442385]
[1768338395656,4.66112573,3207.2,3206.4,1.68442385]
[1768338396042,4.66112573,3207.2,3206.0,1.68442385]
[1768338396241,6.35981988,3207.2,3206.0,1.68442385]
[1768338396472,6.35981988,3207.2,3206.1,1.87736624]
[1768338399390,4.66112573,3206.9,3206.1,0.19294239]
[1768338399561,4.66112573,3206.9,3206.0,1.68442385]
[1768338399762,4.66112573,3206.9,3205.9,1.92942385]
[1768338401191,6.35981988,3206.9,3205.9,1.92942385]
[1768338401383,4.66112573,3206.9,3205.9,1.92942385]
[1768338401581,1.69869415,3206.8,3206.0,0.19294239]
[1768338401786,0.245,3206.8,3206.0,1.68442385]
[1768338402766,4.66112573,3206.3,3205.9,0.245]
[1768338402961,4.66112573,3206.3,3205.7,16.18442385]
[1768338403393,4.66112573,3206.5,3205.7,16.18442385]
[1768338403698,1.69869415,3206.4,3205.8,1.61854239]
[1768338404061,1.69869415,3206.7,3206.2,0.001]
[1768338404264,3.11808709,3207.1,3206.2,0.001]
[1768338404265,1.69869415,3207.1,3206.2,0.001]
[1768338404498,4.66112573,3206.7,3206.2,0.001]
[1768338405308,1.69869415,3206.6,3206.2,0.001]
[1768338405487,4.66112573,3206.7,3206.2,0.001]
[1768338406005,4.66112573,3206.4,3205.6,1.68542385]
[1768338407517,4.66112573,3206.1,3205.6,0.001]
[1768338408482,4.66112573,3206.1,3205.2,1.68442385]
[1768338408690,6.35981988,3206.1,3205.2,1.68442385]
[1768338409122,1.94369415,3206.0,3205.0,1.68442385]
[1768338409417,4.66112573,3205.8,3205.0,1.68442385]
[1768338409975,6.35981988,3205.8,3204.9,0.245]
[1768338410177,1.69869415,3205.8,3204.9,0.245]
[1768338411105,0.245,3206.0,3205.2,1.68442385]
[1768338411311,0.245,3206.0,3205.3,0.16932388]
[1768338411611,6.35981988,3206.1,3205.3,0.16932388]
[1768338411806,1.94369415,3206.0,3205.3,0.16932388]
[1768338412026,1.94369415,3206.0,3205.3,0.00080136]
[1768338412316,1.69869415,3206.0,3205.3,0.00080136]
[1768338412498,4.66782092,3205.9,3205.3,0.00080136]
[1768338412818,1.69869415,3205.8,3205.3,0.00080136]
[1768338415625,1.69869415,3205.8,3205.6,0.001]
[1768338415781,0.002,3205.7,3205.3,0.00080136]
[1768338415977,4.66782092,3205.6,3205.3,0.00080136]
[1768338416218,4.66782092,3205.6,3204.9,16.42942385]
[1768338416426,5.30475256,3205.6,3204.9,1.68442385]
[1768338416636,0.63693164,3205.6,3204.5,1.68442385]
[1768338416935,0.245,3205.6,3204.6,16.18442385]
[1768338417084,1.94369415,3205.6,3204.6,16.18442385]
[1768338417283,4.66782092,3205.5,3204.7,1.68442385]
[1768338417520,1.69869415,3205.4,3204.6,14.5]
[1768338417702,6.36651507,3205.5,3204.6,14.5]
[1768338417902,6.36651507,3205.5,3204.7,1.45]
[1768338418439,1.69869415,3205.5,3204.7,1.45]
[1768338419556,1.69869415,3205.4,3204.7,1.45]
[1768338419854,1.94369415,3205.6,3204.7,1.45]
[1768338420209,1.94369415,3205.6,3204.6,1.68442385]
[1768338420437,0.245,3205.6,3204.6,1.68442385]
[1768338420642,0.245,3205.6,3204.8,1.68442385]
[1768338421954,0.16730997,3205.6,3204.7,14.5]
[1768338422150,1.69869415,3205.6,3204.7,14.5]
[1768338422356,1.69869415,3205.6,3204.8,1.61844239]
[1768338422709,0.00280136,3205.7,3204.8,3.30286624]
[1768338423006,1.70149551,3205.7,3204.8,1.61844239]
[1768338423254,1.69869415,3205.6,3204.8,1.61844239]
[1768338423622,1.94649551,3205.7,3204.7,1.68442385]
[1768338423820,1.94649551,3205.7,3204.7,16.18442385]
[1768338424450,1.70149551,3205.7,3204.8,1.68442385]
[1768338424607,1.70069415,3206.0,3205.0,1.68442385]
[1768338424812,0.002,3206.0,3205.3,0.00080144]
[1768338425016,0.002,3206.0,3205.4,2.00912959]
[1768338428148,0.002,3206.0,3205.6,0.001]
[1768338428550,0.002,3205.7,3205.6,0.001]
[1768338429058,0.002,3205.7,3205.6,1.84160706]
[1768338429416,0.002,3205.7,3205.5,16.34060706]
[1768338429616,0.002,3205.7,3205.6,0.91331296]
[1768338430354,0.002,3205.7,3205.6,2.75392002]
[1768338430569,1.78532357,3206.0,3205.6,0.91331296]
[1768338430869,0.002,3206.0,3205.6,0.91331296]
[1768338435171,3.11820036,3207.0,3205.7,1.84060706]
[1768338435172,1.78332357,3207.0,3205.7,1.84060706]
[1768338435374,1.78332357,3207.0,3205.9,1.84060706]
[1768338437534,0.00080144,3205.7,3204.4,2.66593877]
[1768338437743,1.69639992,3206.5,3205.3,0.00080152]
[1768338437948,1.69639992,3206.5,3205.4,0.245]
[1768338438573,1.69639992,3206.5,3205.5,14.5]
[1768338440289,1.94139992,3206.5,3205.4,0.245]
[1768338440790,1.94139992,3206.5,3205.4,14.745]
[1768338440974,1.94139992,3206.5,3205.7,0.001]
[1768338441169,0.002,3206.2,3205.7,0.001]
[1768338441375,1.69639992,3206.1,3205.7,0.001]
[1768338441591,0.002,3206.2,3205.7,0.001]
[1768338441806,0.002,3206.2,3205.7,1.03140424]
[1768338442472,0.002,3206.2,3205.7,0.001]
[1768338442972,0.002,3206.2,3205.7,0.25159844]
[1768338444270,0.002,3206.5,3205.7,1.28556129]
[1768338446216,1.69839992,3206.5,3205.7,0.001]
[1768338446580,1.69639992,3206.3,3205.7,0.001]
[1768338450436,1.69839992,3206.5,3205.7,0.001]
[1768338450611,0.002,3206.5,3205.8,1.04996686]
[1768338451493,0.002,3206.5,3205.7,0.246]
[1768338451692,0.002,3206.5,3205.7,1.29854968]
[1768338452999,0.002,3206.5,3205.8,14.5]
[1768338453297,0.002,3206.5,3206.0,1.05764929]
[1768338453999,0.002,3206.5,3206.1,15.5601333]
[1768338454497,0.002,3206.3,3206.1,15.5601333]
[1768338454825,0.002,3206.5,3206.1,14.5]
[1768338459643,0.002,3206.5,3205.8,1.06750519]
[1768338460209,0.002,3206.5,3205.9,14.5]
[1768338460443,0.002,3206.5,3206.0,1.55675052]
[1768338460819,0.002,3206.5,3205.7,0.246]
[1768338461014,0.002,3206.5,3205.8,14.5]
[1768338462149,0.002,3206.5,3205.8,15.57510258]
[1768338462730,0.002,3206.5,3205.9,1.07115265]
[1768338463346,0.002,3206.5,3206.0,15.57115265]
[1768338463549,0.002,3206.5,3206.1,1.55711527]
[1768338464117,1.74512652,3206.9,3206.1,1.55711527]
[1768338467149,1.74512652,3206.9,3205.8,1.06724736]
[1768338467349,1.74512652,3206.9,3205.9,14.5]
[1768338467547,0.002,3206.6,3205.9,14.5]
[1768338468243,0.002,3206.6,3205.9,15.55205795]
[1768338469653,1.74512652,3206.8,3205.9,15.55205795]
[1768338469828,1.74512652,3206.8,3206.0,1.5552058]
[1768338470015,1.74512652,3206.8,3206.0,2.59992198]
[1768338470940,0.002,3206.9,3206.1,1.04111173]
[1768338471655,0.002,3206.9,3206.2,0.245]
[1768338471833,0.002,3206.9,3206.4,1.037546]
[1768338472029,0.002,3206.9,3206.5,2.5913006]
[1768338473660,1.74712652,3207.3,3206.5,1.5537546]
[1768338474250,1.99212652,3207.3,3206.3,14.5]
[1768338474425,1.78410132,3207.2,3206.3,14.5]
[1768338474629,1.78410132,3207.2,3206.2,0.245]
[1768338474841,1.74512652,3207.2,3206.2,0.245]
[1768338475044,1.78410132,3207.2,3206.2,14.745]
[1768338475229,1.74512652,3207.1,3206.2,15.9745]
[1768338476836,1.74512652,3207.1,3206.2,14.5]
[1768338477133,1.74512652,3207.1,3205.8,0.245]
[1768338477560,0.002,3207.3,3206.2,1.02031527]
[1768338477868,1.74512652,3207.5,3206.2,1.02031527]
[1768338477869,0.247,3207.6,3206.7,1.01697955]
[1768338478071,0.247,3207.6,3206.8,1.04816328]
[1768338478375,0.247,3207.6,3206.9,0.03118276]
[1768338478580,0.19272247,3207.6,3206.9,14.53118276]
[1768338478731,0.17715342,3207.6,3207.0,1.55481623]
[1768338479150,0.17715342,3207.6,3206.8,1.01697955]
[1768338479443,0.17715342,3207.6,3206.9,14.53118276]
[1768338479662,0.17715342,3207.6,3206.9,14.5]
[1768338479882,1.99012652,3207.7,3206.9,14.5]
[1768338480175,0.245,3207.7,3207.6,0.12789645]
[1768338480536,0.002,3207.8,3207.6,0.12789645]
[1768338480740,0.245,3207.7,3207.6,0.12789645]
[1768338483568,0.002,3207.8,3207.6,0.12789645]
[1768338483767,0.245,3207.7,3207.6,0.12789645]
[1768338484468,1.99012652,3207.7,3207.6,0.12789645]
[1768338488570,1.99012652,3207.7,3207.6,0.07697219]
[1768338488571,2.18933917,3207.7,3207.6,0.07697219]
[1768338488869,1.94433917,3207.7,3207.6,0.07697219]
[1768338489177,2.18933917,3207.7,3207.6,0.07697219]
[1768338489381,1.74670891,3207.6,3206.7,14.5]
[1768338489880,1.74670891,3207.6,3206.5,0.001]
[1768338490080,1.74670891,3207.4,3206.5,0.001]
[1768338492507,1.74670891,3207.4,3206.8,0.001]
[1768338498084,1.7231072,3207.2,3206.8,0.001]
[1768338499813,0.247,3207.8,3206.8,0.94850791]
[1768338500200,1.9701072,3207.8,3206.8,15.44850791]
[1768338501680,0.002,3207.8,3206.9,0.94499997]
[1768338501895,0.002,3208.2,3207.4,0.9425238]
[1768338502122,0.245,3208.1,3207.4,0.9425238]
[1768338502629,0.245,3208.1,3206.8,14.501]
[1768338502630,0.247,3208.2,3206.9,0.94008385]
[1768338502831,1.9701072,3208.2,3207.1,0.94008385]
[1768338504026,0.002,3207.8,3207.1,0.94008385]
[1768338506394,0.002,3207.8,3207.2,14.5]
[1768338507212,0.002,3207.8,3207.2,15.43059328]
[1768338507408,0.002,3207.8,3207.3,0.93059328]
[1768338507618,0.245,3208.0,3207.5,0.93059328]
[1768338507836,1.9681072,3208.0,3207.4,1.54305933]
[1768338508134,0.245,3208.0,3207.4,1.54305933]
[1768338509797,1.7251072,3208.1,3207.4,1.54305933]
[1768338510029,1.9681072,3208.0,3207.4,1.54305933]
[1768338510440,1.7231072,3207.9,3206.8,0.001]
[1768338510745,1.7620735,3207.9,3206.8,0.001]
[1768338510944,1.7231072,3207.9,3206.8,0.001]
[1768338511750,1.7231072,3207.6,3206.8,0.001]
[1768338511899,4.66317131,3207.7,3206.8,0.001]
[1768338511900,1.7231072,3207.4,3206.8,0.001]
[1768338512213,1.7231072,3207.2,3205.7,1.16535955]
[1768338512609,1.7231072,3207.2,3205.8,14.5]
[1768338516318,1.7231072,3207.2,3205.8,15.40880339]
[1768338516635,1.7231072,3207.2,3206.8,0.001]
[1768338517629,1.7231072,3207.2,3205.8,14.5]
[1768338519343,1.7231072,3207.2,3205.8,15.40275399]
[1768338520139,1.64441126,3207.1,3205.8,14.5]
[1768338520326,1.64441126,3206.9,3205.8,15.9501]
[1768338520637,1.64441126,3206.7,3205.8,15.9501]
[1768338521362,1.64441126,3206.7,3205.8,1.4501]
[1768338521512,1.64441126,3206.7,3205.7,0.001]
[1768338528266,1.64441126,3206.7,3206.0,0.001]
[1768338528761,0.002,3206.9,3206.0,0.85853513]
[1768338528762,1.64641126,3206.9,3206.0,0.85853513]
[1768338528962,0.245,3206.8,3206.0,0.85853513]
[1768338529342,0.245,3206.7,3206.0,0.85853513]
[1768338529863,1.88941126,3206.7,3206.0,0.001]
[1768338533374,6.31010778,3206.5,3206.0,0.001]
[1768338537067,4.66569652,3206.5,3206.0,0.001]
[1768338539050,1.64441126,3206.6,3206.0,0.001]
[1768338539374,6.31010778,3206.6,3206.0,0.001]
[1768338540370,4.66569652,3206.6,3206.0,0.001]
[1768338540575,6.31010778,3206.6,3206.0,0.001]
[1768338540874,1.64441126,3206.5,3206.0,0.001]
[1768338541464,1.64441126,3206.5,3206.3,0.001]
[1768338543269,1.64441126,3206.5,3206.0,0.001]
[1768338545292,4.66569652,3206.3,3205.7,0.001]
[1768338545593,1.72423558,3206.1,3205.7,1.52925248]
[1768338545781,1.72423558,3206.1,3205.7,0.001]
[1768338546299,1.72423558,3206.1,3205.1,17.94344611]
[1768338546591,1.72423558,3206.1,3205.2,0.77750734]
[1768338546989,1.72423558,3206.1,3205.1,17.16593877]
[1768338547287,1.72423558,3205.8,3205.1,14.5]
[1768338547491,0.245,3205.7,3205.1,14.5]
[1768338547695,0.245,3205.7,3204.9,2.66593877]
[1768338548063,0.245,3205.7,3205.0,14.5]
[1768338549660,0.245,3205.7,3205.0,15.2657465]
[1768338550185,1.72423558,3206.0,3205.2,0.76193378]
[1768338550390,0.245,3205.9,3205.2,0.76193378]
[1768338550590,0.245,3205.9,3205.3,0.7627353]
[1768338550798,1.72423558,3206.2,3205.3,0.7627353]
[1768338551091,0.245,3205.8,3205.3,0.7627353]
[1768338552091,0.245,3205.8,3205.4,0.03119735]
[1768338552290,0.245,3205.8,3205.3,0.7627353]
[1768338553193,0.245,3205.8,3205.3,0.75151657]
[1768338553699,0.245,3205.8,3205.3,0.00080152]
[1768338553900,0.245,3205.8,3205.6,0.001]
[1768338554199,0.245,3205.8,3205.3,0.00080152]
[1768338561222,1.55550001,3205.7,3205.3,0.00080152]
[1768338561379,0.245,3205.8,3205.3,0.00080152]
[1768338562284,0.245,3205.8,3205.3,1.45088167]
[1768338564480,1.80050001,3205.8,3205.3,1.45088167]
[1768338565483,1.80050001,3205.8,3205.6,0.001]
[1768338566827,0.245,3205.8,3205.6,0.001]
[1768338570191,1.55550001,3205.7,3205.6,0.001]
[1768338570397,1.80050001,3205.8,3205.6,0.001]
[1768338570597,0.245,3205.8,3205.6,0.001]
[1768338573326,6.22119653,3206.0,3205.6,0.001]
[1768338573531,0.245,3205.7,3205.6,0.001]
[1768338576495,1.52453164,3205.6,3205.3,0.00080152]
[1768338576696,1.52453164,3205.3,3204.8,0.60324913]
[1768338576897,0.245,3205.2,3204.8,0.60324913]
[1768338577423,1.76953164,3205.2,3204.8,0.60324913]
[1768338577896,1.52453164,3205.1,3204.8,0.60324913]
[1768338580213,1.52453164,3205.1,3204.2,0.001]
[1768338580214,1.7014848,3205.1,3204.2,0.001]
[1768338580738,1.52453164,3204.9,3204.2,0.001]
[1768338583127,1.52453164,3204.6,3203.6,0.001]
[1768338583321,1.52453164,3204.4,3203.6,0.001]
[1768338583623,1.52453164,3204.4,3203.6,14.501]
[1768338584134,1.52453164,3204.4,3203.6,0.001]
[1768338588042,0.012595,3203.9,3203.6,0.001]
[1768338588240,1.52453164,3204.4,3203.9,0.012595]
[1768338588676,0.245,3204.3,3203.9,0.012595]
[1768338589378,0.245,3204.3,3204.2,0.001]
[1768338589581,1.76953164,3204.3,3203.9,0.012595]
[1768338590819,0.00080152,3205.7,3204.1,1.58293938]
[1768338591024,0.00080152,3205.7,3204.0,27.33467698]
[1768338591025,0.00080152,3205.7,3204.9,1.58293938]
[1768338591330,0.00080152,3205.7,3205.0,16.08293938]
[1768338591940,0.00080152,3205.7,3205.0,1.58293938]
[1768338592329,1.52453164,3205.2,3205.0,14.5]
[1768338592619,2.14388862,3205.1,3204.0,1.82793938]
[1768338592835,0.03900156,3205.0,3204.0,1.82793938]
[1768338593164,0.245,3205.2,3204.1,14.5]
[1768338593165,4.66903815,3204.7,3204.1,14.5]
[1768338593449,4.66903815,3204.7,3202.5,0.161]
[1768338593450,1.52453164,3204.6,3203.6,1.58393938]
[1768338593654,6.19356979,3204.4,3203.6,0.001]
[1768338593818,1.52453164,3204.4,3203.6,0.001]
[1768338594018,1.52453164,3204.4,3203.6,1.4511]
[1768338594268,1.52453164,3204.4,3203.6,0.001]
[1768338594767,0.245,3204.3,3203.6,0.001]
[1768338595250,1.52453164,3204.4,3203.6,0.001]
[1768338595554,0.245,3204.4,3203.6,0.001]
[1768338595753,1.52453164,3205.2,3203.6,1.61515426]
[1768338596075,0.245,3205.1,3203.8,1.58293938]
[1768338596273,0.245,3205.1,3203.9,1.61415134]
[1768338597673,1.76953164,3205.2,3203.9,1.61415134]
[1768338598247,0.245,3205.2,3203.9,1.61415134]
[1768338598451,0.245,3205.2,3204.1,1.58293938]
[1768338598682,0.245,3205.2,3204.2,0.03120903]
[1768338598889,1.52453164,3205.5,3204.2,0.03120903]
[1768338599090,1.76953164,3205.4,3204.1,1.58293938]
[1768338599455,1.76953164,3205.4,3204.2,14.5]
[1768338599691,1.76953164,3205.4,3204.3,1.60829394]
[1768338600183,1.76953164,3205.4,3204.1,1.58293938]
[1768338600366,1.76953164,3205.4,3204.2,16.08293938]
[1768338600779,1.76953164,3205.4,3204.6,0.001]
[1768338601083,0.002,3205.2,3204.6,0.001]
[1768338601655,1.52653164,3205.2,3204.6,0.001]
[1768338602062,0.002,3205.2,3204.6,0.001]
[1768338602262,0.247,3205.2,3204.6,0.001]
[1768338602583,1.52453164,3205.0,3204.0,0.16141513]
[1768338602750,1.52453164,3204.8,3203.6,0.001]
[1768338602952,1.52453164,3204.6,3203.6,0.001]
[1768338603266,1.52453164,3204.6,3203.6,1.58393938]
[1768338603465,0.245,3204.7,3203.6,1.58393938]
[1768338603904,1.52453164,3204.9,3203.6,1.58393938]
[1768338604089,1.69470012,3204.9,3203.7,1.89962726]
[1768338604273,0.245,3204.8,3203.7,1.89962726]
[1768338605366,1.88293245,3204.8,3203.7,0.31668788]
[1768338606399,1.88293245,3204.8,3203.6,0.001]
[1768338608105,1.63793245,3204.6,3203.6,0.001]
[1768338609391,1.63793245,3204.4,3202.6,1.63135138]
[1768338609583,1.63793245,3204.2,3202.6,1.63135138]
[1768338610896,1.63793245,3204.1,3202.6,1.63135138]
[1768338611092,1.63793245,3203.9,3202.6,1.63135138]
[1768338611294,0.47588622,3204.0,3202.5,0.001]
[1768338611295,1.88293245,3203.8,3202.5,0.001]
[1768338612077,1.63793245,3203.6,3202.5,0.001]
[1768338614884,1.63793245,3203.5,3202.5,0.001]
[1768338615076,1.63793245,3203.3,3202.5,0.001]
[1768338615272,1.63793245,3203.1,3202.5,0.001]
[1768338617812,0.245,3203.0,3202.5,0.001]
[1768338618894,1.59032907,3203.9,3202.5,0.001]
[1768338619204,1.59032907,3203.5,3202.5,0.001]
[1768338619411,1.74936198,3203.4,3202.5,0.001]
[1768338619731,0.245,3203.3,3202.5,0.001]
[1768338620717,1.83532907,3203.3,3202.5,0.001]
[1768338621130,1.59032907,3203.1,3202.5,0.001]
[1768338621918,1.59032907,3202.9,3202.1,0.0008012]
[1768338622235,0.03902591,3203.0,3201.7,0.001]
[1768338622236,1.59032907,3202.4,3201.7,0.001]
[1768338622407,1.83532907,3202.3,3201.2,1.51621968]
[1768338622739,1.83532907,3202.3,3200.2,0.245]
[1768338622740,0.0008012,3202.5,3201.4,1.51721968]
[1768338622908,0.0008012,3202.5,3202.3,0.04678371]
[1768338623232,0.2458012,3202.5,3202.3,0.04678371]
[1768338624597,0.002,3206.9,3202.5,1.51621968]
[1768338624598,1.59032907,3203.7,3202.5,1.51621968]
[1768338624817,1.99436198,3203.6,3202.5,1.67564268]
[1768338625409,1.59032907,3203.5,3202.5,0.159423]
[1768338625629,1.59032907,3203.5,3202.3,0.04678371]
[1768338625834,1.59032907,3203.5,3202.3,1.56300339]
[1768338626047,1.59032907,3203.5,3202.4,0.03122658]
[1768338626246,0.002,3203.6,3202.4,1.51621968]
[1768338626447,1.59232907,3203.6,3202.3,0.04678371]
[1768338626746,1.59032907,3203.4,3202.3,0.20316418]
[1768338626933,1.59032907,3203.4,3202.3,1.71938386]
[1768338627245,0.002,3203.6,3202.3,1.71938386]
[1768338629343,0.002,3203.6,3202.5,1.51621968]
[1768338630916,1.59232907,3203.6,3202.4,0.244]
[1768338631121,1.62934889,3203.5,3202.4,0.244]
[1768338631435,1.59032907,3203.5,3202.4,1.76021968]
[1768338632345,1.59032907,3203.5,3202.5,0.18070034]
[1768338632845,1.59032907,3203.3,3202.3,0.04678371]
[1768338633032,0.002,3203.6,3202.3,0.04678371]
[1768338633033,1.87435254,3203.2,3202.3,0.04678371]
[1768338633232,1.83532907,3203.2,3202.3,0.04678371]
[1768338633832,0.03902469,3203.1,3202.3,0.04678371]
[1768338634027,1.83532907,3203.2,3202.3,0.04678371]
[1768338634240,0.18353291,3203.1,3202.3,0.04678371]
[1768338635134,0.245,3203.0,3202.4,0.03122658]
[1768338635346,0.245,3203.0,3202.5,0.0312256]
[1768338635927,1.55503728,3203.5,3202.5,0.0312256]
[1768338636133,1.80003728,3203.4,3202.5,0.0312256]
[1768338636557,1.80003728,3203.4,3202.3,0.07801126]
[1768338636770,0.18000373,3203.3,3202.3,0.23694807]
[1768338636967,0.002,3202.9,3202.3,0.23694807]
[1768338637287,3.1212939,3203.8,3202.3,0.23694807]
[1768338637288,1.55503728,3204.7,3203.4,1.51055558]
[1768338637433,0.002,3204.5,3203.4,1.51055558]
[1768338638634,0.245,3204.9,3203.8,1.51055558]
[1768338639153,1.55503728,3205.1,3203.8,1.51055558]
[1768338639353,0.245,3205.0,3203.8,1.51055558]
[1768338639741,0.245,3204.9,3203.8,1.51055558]